Cogmind - Beta 13 @@@ ROGUE MODE // 2024.06.08 @ 11:00:09 Player: Sandwich Result: Self-destructed Performance ------------- Evolutions (4) 2000 Regions Visited (12) 2400 Robots Destroyed (98) 490 Value Destroyed (3665) 3665 Prototype IDs (36) 720 Alien Tech Used (0) 0 Bonus (724) 724 TOTAL SCORE: 9999 Bonus ------- High Alert Combat Kills 32 Follower Combat Kills 111 Aligned with FarCom 300 Met Data Miner 300 Friendly Fire -19 Cogmind --------- Core Integrity 488/850 Matter 274/300 Energy 150/150 System Corruption 9% Temperature Cool (0) Movement Walking (400) Ox4 Location -5/Proximity Caves Parts ------- > --- POWER (1) -------- Micro Nuclear Core > --- PROPULSION (5) --- Armored Leg > --- UTILITY (5) ------ Coolant Injector High-capacity Storage Unit Advanced Targeting Computer Hardened Heavy Armor Plating > --- WEAPON (4) ------- Thermic Laser Railgun > --- INVENTORY (20) --- Micro Nuclear Core Neutrino Core Advanced Heat Sink Advanced Heat Sink Advanced Heat Sink Improved Cooling System High-capacity Storage Unit AWS/Autocannon Proton Missile Launcher Peak State ------------ > --- POWER ------------ Fission Core > --- PROPULSION ------- Carbon-fiber Leg Carbon-fiber Leg Carbon-fiber Leg Carbon-fiber Leg Flexi-carbon Leg > --- UTILITY ---------- Advanced Heat Sink Coolant Injector High-capacity Storage Unit Advanced Targeting Computer Experimental Targeting Computer > --- WEAPON ----------- Heavy Laser Heavy Laser Plasma Rifle Thermic Laser > --- INVENTORY -------- Micro Nuclear Core Micro Nuclear Core Armored Leg Advanced Heat Sink Advanced Heat Sink Improved Cooling System Coolant Injector Coolant Injector High-capacity Storage Unit Hardened Heavy Armor Plating Field Laser Heavy Laser Heavy Laser Thermic Laser Thermic Laser AWS/Autocannon Proton Missile Launcher [Rating: 68] Favorites ----------- Power Improved Deuterium Engine Engine Improved Deuterium Engine Power Core Micro Nuclear Core Propulsion Carbon-fiber Leg Treads Light Treads Leg Carbon-fiber Leg Wheel Compact Wheel Flight Unit VTOL Module Utility Improved Heat Sink Device Improved Heat Sink Storage High-capacity Storage Unit Processor Advanced Targeting Computer Protection Hardened Heavy Armor Plating Weapon Field Laser Energy Gun Field Laser Ballistic Gun Light Assault Rifle Build | -11 -10 -9 -9 -9 -8 -8 -7 -6 -6 -6 -6 -5 ------- Run | Yrd Mat Mat Min Exi Min Mat Fac Fac Low Low Dat Pro Slots Evolved 8 | . . 2 . . . 2 2 2 . . . . Power . | . . . . . . . . . . . . . Propulsion 3 | . . 2 . . . . 1 . . . . . Utility 3 | . . . . . . 1 1 1 . . . . Weapon 2 | . . . . . . 1 . 1 . . . . Parts Attached 108 | 6 1 24 1 . 3 12 14 25 3 10 . 9 Power 13 | 1 . 3 . . . 2 2 3 . 1 . 1 Engine 7 | 1 . 2 . . . 2 2 . . . . . Core 6 | . . 1 . . . . . 3 . 1 . 1 Reactor . | . . . . . . . . . . . . . Propulsion 40 | 2 . 15 1 . 3 5 3 6 3 1 . 1 Treads 1 | 1 . . . . . . . . . . . . Leg 32 | . . 9 1 . 3 5 3 6 3 1 . 1 Wheel 1 | 1 . . . . . . . . . . . . Hover . | . . . . . . . . . . . . . Flight 6 | . . 6 . . . . . . . . . . Utility 27 | 1 1 3 . . . 3 5 11 . 2 . 1 Device 19 | . 1 2 . . . 3 3 8 . 1 . 1 Storage 3 | 1 . 1 . . . . 1 . . . . . Processor 4 | . . . . . . . 1 3 . . . . Hackware . | . . . . . . . . . . . . . Protection 1 | . . . . . . . . . . 1 . . Artifact . | . . . . . . . . . . . . . Weapon 28 | 2 . 3 . . . 2 4 5 . 6 . 6 Energy Gun 24 | . . 2 . . . 2 4 5 . 6 . 5 Energy Cannon . | . . . . . . . . . . . . . Ballistic Gun 4 | 2 . 1 . . . . . . . . . 1 Ballistic Cannon . | . . . . . . . . . . . . . Launcher . | . . . . . . . . . . . . . Special Weapon . | . . . . . . . . . . . . . Impact Weapon . | . . . . . . . . . . . . . Slashing Weapon . | . . . . . . . . . . . . . Piercing Weapon . | . . . . . . . . . . . . . Special Melee Weapon . | . . . . . . . . . . . . . Unidentified Prototypes 2 | . . . . . . . 1 1 . . . . Parts Lost 32 | . . 6 1 . . 1 4 3 2 9 . 6 Power 3 | . . . . . . . 1 1 . . . 1 Propulsion 15 | . . 5 1 . . . 1 1 2 4 . 1 Utility 1 | . . . . . . . . . . 1 . . Weapon 13 | . . 1 . . . 1 2 1 . 4 . 4 Highest Loss Streak 7 | . . 6 1 . . 1 3 1 1 7 . 4 To Critical Strikes 1 | . . . . . . . . . . . . 1 Average Slot Usage (%) 94 | . 96 98 99 100 100 100 99 98 99 78 51 63 Engine 5 | . 14 6 11 11 11 9 6 3 . . . . Core 2 | . . 4 . . . . . 2 6 6 6 5 Leg 31 | . . 33 43 44 44 36 37 32 32 17 13 8 Flight 1 | . . 8 . . . . . . . . . . Device 12 | . 10 11 11 11 11 18 15 12 13 10 6 5 Storage 8 | . 14 11 11 11 11 9 7 6 6 6 6 6 Processor 5 | . . . . . . . 6 13 13 10 6 6 Energy Gun 20 | . . 10 22 22 22 27 22 25 26 22 5 17 Ballistic Gun 2 | . 28 11 . . . . . . . . . 3 Naked Turns . | . . . . . . . . . . . . . Heaviest Build 86 | 13 14 33 33 33 33 41 60 67 64 86 86 86 Greatest Support 80 | 20 20 43 43 40 45 58 75 75 80 80 36 36 Greatest Overweight (x) 5 | . . 3 1 . . . . 1 1 2 2 5 Average Overweight (x) . | . . . . . . . . . . . 1 3 Largest Inventory Capacity 20 | 8 8 15 15 15 15 15 20 20 20 20 20 20 Average Capacity 16 | 6 8 11 15 15 15 15 16 20 20 20 20 20 Most Carried 20 | 6 8 15 15 15 15 15 18 20 20 20 18 17 Average Carried 15 | 2 7 10 15 14 15 14 14 19 19 16 17 12 Final Capacity 20 | 8 8 15 15 15 15 15 20 20 20 20 20 20 Final Carried 20 | 6 8 15 15 15 15 15 18 20 19 14 18 11 Class Distribution -------------------- 34% | Gunner 24% | Scavenger-Mutant 14% | Skirmisher 10% | Scavenger-Skirmisher 7% | Scavenger-Gunner 5% | Mutant Dominant Class ---------------- Mutant | -10/Materials Scavenger-Mutant | -9/Materials Scavenger-Mutant | -9/Mines Scavenger-Mutant | -9/Exiles Scavenger-Mutant | -8/Mines Skirmisher | -8/Materials Scavenger-Skirmisher | -7/Factory Gunner | -6/Factory Gunner | -6/Lower Caves Gunner | -6/Lower Caves Mutant | -6/Data Miner Gunner | -5/Proximity Caves Resources | -11 -10 -9 -9 -9 -8 -8 -7 -6 -6 -6 -6 -5 ----------- Run | Yrd Mat Mat Min Exi Min Mat Fac Fac Low Low Dat Pro Matter Collected 1593 | 247 47 424 10 . 30 118 122 267 79 94 . 155 Remotely . | . . . . . . . . . . . . . Salvage Created 4328 | . 93 1140 204 . 40 373 528 708 473 501 . 268 Parts 186 | . 6 66 8 . 4 19 21 25 11 18 . 8 Haulers Intercepted 5 | . . 3 . . . 1 1 . . . . . Recyclers Shooed . | . . . . . . . . . . . . . Parts Field Recycled . | . . . . . . . . . . . . . Retrieved Matter . | . . . . . . . . . . . . . Parts Self-Destructed 40 | . . . . . . . . . 11 15 . 14 Prevented 1 | . . . . . . . . . 1 . . . Kills | -11 -10 -9 -9 -9 -8 -8 -7 -6 -6 -6 -6 -5 ------- Run | Yrd Mat Mat Min Exi Min Mat Fac Fac Low Low Dat Pro Combat Hostiles Destroyed 83 | . 2 23 3 . 1 8 9 11 8 13 . 5 Guns 73 | . 2 20 3 . 1 7 8 9 5 13 . 5 AOE 2 | . . 2 . . . . . . . . . . Classes Destroyed 16 | . 1 5 1 . 1 3 1 2 . 1 . 1 Worker 3 | . . 1 . . . . . 2 . . . . Tunneler 1 | . . . . . . . . 1 . . . . Hauler 5 | . . 3 . . . 1 1 . . . . . Recycler 1 | . . . 1 . . . . . . . . . Operator 1 | . . . . . . 1 . . . . . . Drone 1 | . . . . . . . . . . . . 1 Watcher 4 | . . . . . . 1 . 3 . . . . Swarmer 13 | . . . . . . 4 . 3 . 6 . . Grunt 39 | . 2 17 2 . . . 4 4 5 4 . 1 Brawler 2 | . . 1 1 . . . . . . . . . Duelist 2 | . . 1 . . . . 1 . . . . . Sentry 13 | . . 4 . . . 3 2 1 1 1 . 1 Hunter 5 | . . . . . 1 1 1 . . . . 2 Programmer 5 | . . . . . . . 1 2 2 . . . Heavy 1 | . . . . . . . . 1 . . . . Thief 2 | . . . . . . . . . . 2 . . Best Kill Streak 7 | . 2 4 3 . 1 2 3 5 5 7 . 4 Combat Bots Only 7 | . 2 4 2 . 1 2 3 4 5 7 . 4 Max Kills in Single Turn 2 | . 1 2 1 . 1 1 1 2 1 1 . 1 Gunslinging . | . . . . . . . . . . . . . Exploded 2 | . . 2 . . . . . . . . . . Melee . | . . . . . . . . . . . . . Uniques/NPCs Destroyed . | . . . . . . . . . . . . . Combat | -11 -10 -9 -9 -9 -8 -8 -7 -6 -6 -6 -6 -5 -------- Run | Yrd Mat Mat Min Exi Min Mat Fac Fac Low Low Dat Pro Hostile Shots Fired 477 | . 7 98 6 . 6 30 63 62 48 77 . 80 Missed 133 | . 2 27 3 . 2 8 17 23 17 20 . 14 Damage Taken 5652 | . 70 988 48 . 67 302 616 861 588 859 . 1253 Core 769 | . . 219 . . 11 68 109 62 39 120 . 141 Absorbed by Shields . | . . . . . . . . . . . . . Core Remaining (%) 82 | 100 100 . . . 42 87 84 . . . . . Volleys Fired 241 | . 8 80 12 . 5 28 24 26 16 28 . 14 Largest 4 | . 2 2 2 . 2 3 3 4 4 4 . 4 Hottest 302 | . 40 113 113 . 113 189 189 298 298 298 . 302 Shots Fired 646 | . 16 159 24 . 10 84 71 106 51 81 . 44 Gun 646 | . 16 159 24 . 10 84 71 106 51 81 . 44 Cannon . | . . . . . . . . . . . . . Launcher . | . . . . . . . . . . . . . Special . | . . . . . . . . . . . . . Kinetic 132 | . 16 114 . . . . . . . . . 2 Thermal 514 | . . 45 24 . 10 84 71 106 51 81 . 42 Explosive . | . . . . . . . . . . . . . Electromagnetic . | . . . . . . . . . . . . . Robot Hit Streak 33 | . 8 13 12 . 4 29 33 13 25 16 . 11 Robot Miss Streak 6 | . 2 2 2 . 1 6 1 3 1 2 . 6 Penetration Max . | . . . . . . . . . . . . . Secondary Targets 14 | . . 5 1 . . . . . 2 5 . 1 Max Gunslinging Chain 1 | . . 1 1 . . . . . 1 1 . 1 Shots Hit Robots 491 | . 11 119 19 . 8 56 61 80 44 65 . 28 Core Hits 192 | . 5 48 7 . 3 17 23 31 19 28 . 11 Critical Kills . | . . . . . . . . . . . . . Critical Parts Destroyed . | . . . . . . . . . . . . . Critical Strikes 28 | . . 3 4 . . . 1 6 7 5 . 2 Burn 28 | . . 3 4 . . . 1 6 7 5 . 2 Melee Attacks . | . . . . . . . . . . . . . Impact . | . . . . . . . . . . . . . Slashing . | . . . . . . . . . . . . . Piercing . | . . . . . . . . . . . . . Sneak Attacks . | . . . . . . . . . . . . . Combat Hostiles . | . . . . . . . . . . . . . Follow-up Attacks . | . . . . . . . . . . . . . Damage Inflicted 8519 | . 121 1769 270 . 116 921 1016 1645 897 1258 . 506 Guns 8200 | . 121 1450 270 . 116 921 1016 1645 897 1258 . 506 Cannons . | . . . . . . . . . . . . . Explosions 319 | . . 319 . . . . . . . . . . Melee . | . . . . . . . . . . . . . Ramming . | . . . . . . . . . . . . . Kinetic 944 | . 121 823 . . . . . . . . . . Thermal 7575 | . . 946 270 . 116 921 1016 1645 897 1258 . 506 Explosive . | . . . . . . . . . . . . . Electromagnetic . | . . . . . . . . . . . . . Impact . | . . . . . . . . . . . . . Slashing . | . . . . . . . . . . . . . Piercing . | . . . . . . . . . . . . . Highest Corruption 9 | . . . . . . . 1 6 9 9 9 9 Average Corruption 6 | . . . . . . . 1 4 8 9 9 9 Corruption Purged . | . . . . . . . . . . . . . Corruption Blocked . | . . . . . . . . . . . . . Effects 100 | . . . . . . . . 28 20 24 6 22 Message Errors 27 | . . . . . . . . 7 5 6 2 7 Matter Fused 18 | . . . . . . . . 5 4 4 1 4 Heat Flow Errors 8 | . . . . . . . . 1 1 4 . 2 Energy Discharges 15 | . . . . . . . . 4 3 3 1 4 Parts Rejected 4 | . . . . . . . . 2 . 1 . 1 Data Loss (minor) 12 | . . . . . . . . 1 4 4 2 1 Data Loss (major) 3 | . . . . . . . . 3 . . . . Misfires 5 | . . . . . . . . 3 1 . . 1 Alerts 3 | . . . . . . . . 1 . . . 2 Weapon Failures 5 | . . . . . . . . 1 2 2 . . Overload Shots . | . . . . . . . . . . . . . Overflow Damage . | . . . . . . . . . . . . . Projectiles . | . . . . . . . . . . . . . Explosions . | . . . . . . . . . . . . . Melee . | . . . . . . . . . . . . . Knockbacks . | . . . . . . . . . . . . . Impact . | . . . . . . . . . . . . . Kinetic . | . . . . . . . . . . . . . Secondary . | . . . . . . . . . . . . . Self-Inflicted Damage . | . . . . . . . . . . . . . Shots . | . . . . . . . . . . . . . Rammed . | . . . . . . . . . . . . . Targets Rammed . | . . . . . . . . . . . . . Kicked . | . . . . . . . . . . . . . Crushed . | . . . . . . . . . . . . . Highest Temperature 484 | . 9 36 33 . 12 180 123 484 199 199 . 414 Average Temperature 76 | . 7 8 9 . 5 61 35 121 130 121 . 162 Received Heat Transfer 1236 | . 39 420 12 . . 81 135 150 147 162 . 90 Effects 4 | . . . . . . . . 2 . . . 2 Energy Bleed 2 | . . . . . . . . 1 . . . 1 Matter Decay 1 | . . . . . . . . . . . . 1 Damage (minor) 1 | . . . . . . . . 1 . . . . Siege Activations . | . . . . . . . . . . . . . Robots Corrupted . | . . . . . . . . . . . . . Combat Hostiles . | . . . . . . . . . . . . . Parts Fried . | . . . . . . . . . . . . . Impact Corruptions . | . . . . . . . . . . . . . Robots Melted 9 | . . 1 . . . 1 1 3 3 . . . Combat Hostiles 8 | . . 1 . . . 1 1 2 3 . . . Parts Melted 67 | . . 6 . . . 10 5 21 16 4 . 5 Heat Transferred 18544 | . . 1915 999 . 296 2072 2368 3803 2666 2955 . 1470 Parts Sabotaged . | . . . . . . . . . . . . . Parts Stolen 1 | . . . . . . . . . . 1 . . Parts Stripped . | . . . . . . . . . . . . . Power Chain Reactions . | . . . . . . . . . . . . . Alert | -11 -10 -9 -9 -9 -8 -8 -7 -6 -6 -6 -6 -5 ------- Run | Yrd Mat Mat Min Exi Min Mat Fac Fac Low Low Dat Pro Peak Influence 488 | . 90 488 159 . 54 247 190 224 . . . . Initial 89 | . . 37 89 . . . 44 22 . . . . Average 103 | . 66 210 129 . 15 84 84 86 . . . . Maximum Alert Level 2 | . . 2 . . . 1 . 1 . . . . Low Security (%) 88 | 100 100 54 100 . 100 81 100 99 . . . . Level 1 8 | . . 29 . . . 18 . . . . . . Level 2 3 | . . 16 . . . . . . . . . . Level 3 . | . . . . . . . . . . . . . Level 4 . | . . . . . . . . . . . . . Level 5 . | . . . . . . . . . . . . . High Security . | . . . . . . . . . . . . . Max Security . | . . . . . . . . . . . . . Squads Dispatched 15 | . 1 2 . . . 1 6 4 . . . 1 Investigation 2 | . . 1 . . . . . 1 . . . . Extermination 2 | . . . . . . . 1 1 . . . . Reinforcement 7 | . 1 1 . . . 1 2 2 . . . . Assault 1 | . . . . . . . . . . . . 1 Garrison 3 | . . . . . . . 3 . . . . . Intercept . | . . . . . . . . . . . . . Searches Triggered . | . . . . . . . . . . . . . Construction Impeded 1 | . . . . . . . 1 . . . . . Haulers Reinforced . | . . . . . . . . . . . . . Active Scanning Responses . | . . . . . . . . . . . . . Cargo Convoy Interrupts . | . . . . . . . . . . . . . Stealth | -11 -10 -9 -9 -9 -8 -8 -7 -6 -6 -6 -6 -5 --------- Run | Yrd Mat Mat Min Exi Min Mat Fac Fac Low Low Dat Pro Distress Signals 9 | . 1 5 . . . 1 2 . . . . . Communications Jammed . | . . . . . . . . . . . . . Distress Signals . | . . . . . . . . . . . . . Times Spotted 132 | . 7 38 3 . 1 13 16 20 8 15 . 11 Peak Tracking Total 10 | . 3 10 3 . 1 6 4 4 5 8 . 6 Tactical Retreats 13 | . 1 3 . . . 2 2 1 . 2 . 2 Traps | -11 -10 -9 -9 -9 -8 -8 -7 -6 -6 -6 -6 -5 ------- Run | Yrd Mat Mat Min Exi Min Mat Fac Fac Low Low Dat Pro Traps Triggered 6 | . . 2 . . . . . 4 . . . . Indirectly . | . . . . . . . . . . . . . Trap Hack Attempts . | . . . . . . . . . . . . . Triggered . | . . . . . . . . . . . . . Disarmed . | . . . . . . . . . . . . . Reprogrammed . | . . . . . . . . . . . . . Reused . | . . . . . . . . . . . . . Traps Extracted . | . . . . . . . . . . . . . Installed . | . . . . . . . . . . . . . Triggered 1 | . . . . . . . . . 1 . . . Objects Rigged 6 | . . 6 . . . . . . . . . . Exploded 1 | . . 1 . . . . . . . . . . Machines | -11 -10 -9 -9 -9 -8 -8 -7 -6 -6 -6 -6 -5 ---------- Run | Yrd Mat Mat Min Exi Min Mat Fac Fac Low Low Dat Pro Machines Disabled 7 | . . 3 . . . 2 . 1 . 1 . . Max in Single Turn 3 | . . 3 . . . 1 . 1 . 1 . . Machines Repaired . | . . . . . . . . . . . . . Machines Dismantled . | . . . . . . . . . . . . . Machines Sabotaged . | . . . . . . . . . . . . . Overloaded Fab Kills . | . . . . . . . . . . . . . Hacking | -11 -10 -9 -9 -9 -8 -8 -7 -6 -6 -6 -6 -5 --------- Run | Yrd Mat Mat Min Exi Min Mat Fac Fac Low Low Dat Pro Machines Accessed 33 | . 2 6 1 1 1 3 4 8 2 1 4 . Terminals 20 | . 2 6 1 . 1 3 3 3 . 1 . . Fabricators 3 | . . . . . . . . 3 . . . . Repair Stations . | . . . . . . . . . . . . . Recycling Units 1 | . . . . . . . . 1 . . . . Scanalyzers . | . . . . . . . . . . . . . Garrison Access 2 | . . . . . . . 1 1 . . . . Total Hacks 98 | . 6 20 2 1 3 5 10 13 6 4 28 . Successful 65 | . 4 10 1 1 2 1 3 5 6 4 28 . Failed 33 | . 2 10 1 . 1 4 7 8 . . . . Catastrophic 12 | . . 4 . . . 1 4 3 . . . . Database Lockouts . | . . . . . . . . . . . . . Manual 46 | . 6 18 . 1 1 2 7 11 . . . . Terminals 53 | . 6 20 2 . 3 5 8 5 . 4 . . Fabricators 6 | . . . . . . . . 6 . . . . Repair Stations . | . . . . . . . . . . . . . Recycling Units 1 | . . . . . . . . 1 . . . . Scanalyzers . | . . . . . . . . . . . . . Garrison Access 3 | . . . . . . . 2 1 . . . . Terminal Hacks 47 | . . 3 1 1 2 1 1 . 6 4 28 . Record 21 | . . . . . . 1 . . 5 4 11 . Part Schematic 10 | . . . . . . . . . . . 10 . Robot Schematic 4 | . . . . . . . . . . . 4 . Prototype ID Bank 3 | . . . . . . . . . . . 3 . Open Door 1 | . . . . . . . . . 1 . . . Level Access Points 1 | . . . . . 1 . . . . . . . Emergency Access Points 1 | . . 1 . . . . . . . . . . Unreport Threat 2 | . . 2 . . . . . . . . . . Dispatch Records 1 | . . . . . 1 . . . . . . . Zone Layout 2 | . . . 1 . . . 1 . . . . . Derelict Proto ID Bank 1 | . . . . 1 . . . . . . . . Fabricator Hacks 1 | . . . . . . . . 1 . . . . Build 1 | . . . . . . . . 1 . . . . Repair Station Hacks . | . . . . . . . . . . . . . Recycling Unit Hacks . | . . . . . . . . . . . . . Scanalyzer . | . . . . . . . . . . . . . Garrison Access Hacks . | . . . . . . . . . . . . . Unauthorized Hacks 17 | . 4 7 . . . . 2 4 . . . . Terminals 14 | . 4 7 . . . . 2 1 . . . . Track 1 | . 1 . . . . . . . . . . . Botnet 11 | . 2 6 . . . . 2 1 . . . . Detonate 1 | . . 1 . . . . . . . . . . Operators 1 | . 1 . . . . . . . . . . . Fabricators 3 | . . . . . . . . 3 . . . . Fabnet 3 | . . . . . . . . 3 . . . . Repair Stations . | . . . . . . . . . . . . . Recycling Units . | . . . . . . . . . . . . . Scanalyzers . | . . . . . . . . . . . . . Garrison Access . | . . . . . . . . . . . . . Data Cores Recovered 1 | . . . . . . 1 . . . . . . Used . | . . . . . . . . . . . . . Hacking Detections 24 | . 2 6 1 . 1 3 4 6 . 1 . . Full Trace Events 1 | . . . . . . 1 . . . . . . Feedback Events . | . . . . . . . . . . . . . Feedback Blocked . | . . . . . . . . . . . . . Robot Schematics Acquired 4 | . . . . . . . . . . . 4 . Robots Built 3 | . . . . . . . . 3 . . . . Authchips . | . . . . . . . . . . . . . Time 134 | . . . . . . . . 134 . . . . Total Robot Build Rating 12 | . . . . . . . . 12 . . . . Part Schematics Acquired 10 | . . . . . . . . . . . 10 . Parts Built . | . . . . . . . . . . . . . Authchips . | . . . . . . . . . . . . . Time . | . . . . . . . . . . . . . Total Part Build Rating . | . . . . . . . . . . . . . Parts Repaired . | . . . . . . . . . . . . . Time . | . . . . . . . . . . . . . Parts Recycled . | . . . . . . . . . . . . . Recycled Matter . | . . . . . . . . . . . . . Retrieved Matter . | . . . . . . . . . . . . . Retrieved Components . | . . . . . . . . . . . . . Parts Scanalyzed . | . . . . . . . . . . . . . Part Schematics Acquired . | . . . . . . . . . . . . . Parts Damaged . | . . . . . . . . . . . . . Bothacking | -11 -10 -9 -9 -9 -8 -8 -7 -6 -6 -6 -6 -5 ------------ Run | Yrd Mat Mat Min Exi Min Mat Fac Fac Low Low Dat Pro Used RIF Installer . | . . . . . . . . . . . . . Robots Hacked 1 | . . . . . . . . . . . . 1 Non-combat . | . . . . . . . . . . . . . Combat 1 | . . . . . . . . . . . . 1 Robot Hacks Applied . | . . . . . . . . . . . . . Relay Couplers Released . | . . . . . . . . . . . . . Fabnet Peak Effective % 9 | . . . . . . . . . . . . 9 Autooverrided 1 | . . . . . . . . . . . . 1 Robots Rewired . | . . . . . . . . . . . . . Allies Hacked . | . . . . . . . . . . . . . Hacks Repelled . | . . . . . . . . . . . . . Allies | -11 -10 -9 -9 -9 -8 -8 -7 -6 -6 -6 -6 -5 -------- Run | Yrd Mat Mat Min Exi Min Mat Fac Fac Low Low Dat Pro Total Allies 5 | . . . . . . . . 3 . . . 2 Largest Group 3 | . . . . . . . . 3 . . . 2 Highest-Rated Group 125 | . . . . . . . . 90 . . . 125 Highest-Rated Ally 96 | . . . . . . . . 30 . . . 96 Total Orders . | . . . . . . . . . . . . . Ally Attacks 34 | . . . . . . . . 11 . . . 23 Total Damage 1076 | . . . . . . . . 284 . . . 792 Kills 7 | . . . . . . . . 3 . . . 4 Allies Corrupted 2 | . . . . . . . . 2 . . . . Allies Melted 1 | . . . . . . . . . . . . 1 Intel | -11 -10 -9 -9 -9 -8 -8 -7 -6 -6 -6 -6 -5 ------- Run | Yrd Mat Mat Min Exi Min Mat Fac Fac Low Low Dat Pro Robot Analysis Total . | . . . . . . . . . . . . . Derelict Logs Recovered 1 | . . . . . . . . . . 1 . . Drone Launches . | . . . . . . . . . . . . . Drone Recoveries . | . . . . . . . . . . . . . Exploration | -11 -10 -9 -9 -9 -8 -8 -7 -6 -6 -6 -6 -5 ------------- Run | Yrd Mat Mat Min Exi Min Mat Fac Fac Low Low Dat Pro Turns Passed 7483 | 55 243 1024 284 268 457 877 998 1498 530 576 156 517 Spaces Moved 4546 | 41 127 668 193 222 277 560 660 967 378 252 78 123 Core 4 | 3 . 1 . . . . . . . . . . Treads 103 | 1 102 . . . . . . . . . . . Legs 4174 | . . 464 193 222 277 560 660 967 378 252 78 123 Wheels 62 | 37 25 . . . . . . . . . . . Hover . | . . . . . . . . . . . . . Flight 203 | . . 203 . . . . . . . . . . Fastest Speed 26 | 50 100 26 120 120 120 120 120 120 120 120 190 260 Average Speed 129 | 97 148 91 121 120 120 120 120 124 120 186 199 369 Slowest Speed 470 | 160 160 200 190 120 120 120 120 190 190 260 260 470 Overloaded Moves . | . . . . . . . . . . . . . Propulsion Burnouts . | . . . . . . . . . . . . . Robots Hopped 5 | . . 5 . . . . . . . . . . Cave-ins Triggered . | . . . . . . . . . . . . . Exploration Rate (%) 39 | 3 31 52 41 61 69 42 19 25 43 46 68 18 Regions Visited 12 Branch Regions 7 Pre-discovered Areas 2 | . . . . . . . . . . 1 1 . Known Exits Taken 1 | . . . . . 1 . . . . . . . Unknown Exits Taken 11 | 1 1 1 1 1 . 1 1 1 1 1 1 . Scrap Searched 4 | . . . . . 2 . . . 2 . . . Spaces Dug . | . . . . . . . . . . . . . Terrain Destroyed 48 | . . 46 . . . . . . 1 . . 1 Melee . | . . . . . . . . . . . . . Projectile 2 | . . . . . . . . . 1 . . 1 AOE 46 | . . 46 . . . . . . . . . . Terrain Rammed . | . . . . . . . . . . . . . Walls Destroyed . | . . . . . . . . . . . . . Machines Disabled . | . . . . . . . . . . . . . Actions | -11 -10 -9 -9 -9 -8 -8 -7 -6 -6 -6 -6 -5 --------- Run | Yrd Mat Mat Min Exi Min Mat Fac Fac Low Low Dat Pro Total 5667 | 52 170 939 219 225 393 707 811 1205 415 298 81 152 Wait 639 | . 23 126 14 . 106 88 104 154 14 4 . 6 Move 4524 | 40 126 657 192 221 276 559 659 966 377 251 77 123 Hop 5 | . . 5 . . . . . . . . . . Pick Up 67 | 6 7 24 . 1 . 7 5 12 3 2 . . Fast Attach 31 | 6 1 8 1 . . 2 3 6 . 2 . 2 Attach 36 | . . 6 . . . 3 5 6 2 7 . 7 Detach 7 | . . . . . . . 1 1 . 1 4 . Swap 41 | . . 10 . . 3 7 6 13 1 1 . . Drop 76 | . 5 23 . 3 3 13 4 21 2 2 . . Fire 241 | . 8 80 12 . 5 28 24 26 16 28 . 14 Melee . | . . . . . . . . . . . . . Ram . | . . . . . . . . . . . . . Kick . | . . . . . . . . . . . . . Crush . | . . . . . . . . . . . . . Escape Stasis . | . . . . . . . . . . . . . Rewire . | . . . . . . . . . . . . . Trap . | . . . . . . . . . . . . . Miscellaneous . | . . . . . . . . . . . . . Route ------- -11/Scrapyard -10/Materials -9/Materials (discovered 3 exits: *Mat / *Min / [*Sto]) -9/Mines (discovered 2 exits: *Mat / *Exi) -9/Exiles -8/Mines (discovered 2 exits: *Mat x2) -8/Materials -7/Factory -6/Factory (discovered 3 exits: *Fac x2 / *Low) -6/Lower Caves -6/Lower Caves (discovered 2 exits: *Fac / *Dat) -6/Data Miner -5/Proximity Caves (discovered 1 exit: Fac) History --------- Turn | Location | Event 12 | -11/Scrapyard | Discovered new exit (range 15) 56 | -11/Scrapyard | Entered Materials 247 | -10/Materials | Discovered new exit (range 5) 299 | -10/Materials | Entered another Materials area 299 | -9/Materials | Evolved 2 slots: Propulsion x2 541 | -9/Materials | Lost 6 parts (5n1w) 799 | -9/Materials | Build established: Scavenger-Mutant 833 | -9/Materials | Discovered new exit (range 9) 1001 | -9/Materials | Discovered new exit (range 15) 1027 | -9/Materials | Core integrity fell below 50% 1107 | -9/Materials | Discovered new exit (range 16) 1323 | -9/Materials | Entered Mines 1387 | -9/Mines | Discovered new exit (range 13) 1603 | -9/Mines | Deemed a non-threat by the Exiles lab entrance 1603 | -9/Mines | Discovered new exit (range 5) 1607 | -9/Mines | Entered Exiles 1636 | -9/Exiles | Met 8R-AWN 1658 | -9/Exiles | Met EX-HEX 1695 | -9/Exiles | Met EX-BIN 1708 | -9/Exiles | Aligned with FarCom system 1709 | -9/Exiles | Given EX-Vault access code 1741 | -9/Exiles | Opened EX-Vault 1749 | -9/Exiles | Found AWS/Autocannon 1776 | -9/Exiles | Warned to stay clear of 0b10 Research branches 1813 | -9/Exiles | Met EX-DEC 1864 | -9/Exiles | Discovered new exit (range 10) 1875 | -9/Exiles | Left Exiles lab with AWS/Autocannon 1875 | -9/Exiles | Entered Mines 2167 | -8/Mines | Identified exit to Materials 2332 | -8/Mines | Entered Materials 2332 | -8/Materials | Evolved 2 slots: Utility x1, Weapon x1 2881 | -8/Materials | Discovered new exit (range 10) 2913 | -8/Materials | Build established: Skirmisher 3209 | -8/Materials | Entered Factory 3209 | -7/Factory | Evolved 2 slots: Propulsion x1, Utility x1 3341 | -7/Factory | Garrison activated, responded to threat 3459 | -7/Factory | Lost 3 parts (1n2w) 4016 | -7/Factory | Build established: Scavenger-Skirmisher 4155 | -7/Factory | Discovered new exit (range 14) 4207 | -7/Factory | Entered another Factory area 4207 | -6/Factory | Evolved 2 slots: Utility x1, Weapon x1 4397 | -6/Factory | Discovered new exit (range 3) 4597 | -6/Factory | Fabricated L-41 Fighter? 4600 | -6/Factory | Build established: Gunner 5181 | -6/Factory | Build established: Scavenger-Gunner 5464 | -6/Factory | Discovered new exit (range 10) 5580 | -6/Factory | Discovered new exit (range 6) 5589 | -6/Factory | Found Prototype Processor 5589 | -6/Factory | Identified Exp. Targeting Computer 5705 | -6/Factory | Entered Lower Caves 5708 | -6/Lower Caves | Build established: Gunner 5939 | -6/Lower Caves | Learned Factory trap positions 5939 | -6/Lower Caves | Learned Extension trap positions 6181 | -6/Lower Caves | Discovered new exit (range 9) 6235 | -6/Lower Caves | Entered another Lower Caves area 6236 | -6/Lower Caves | Identified exit to Factory 6347 | -6/Lower Caves | Attracted the attention of an 0b10 checkpoint 6361 | -6/Lower Caves | Attracted the attention of an 0b10 base 6415 | -6/Lower Caves | Learned 8 Factory zone layouts 6415 | -6/Lower Caves | Learned 6 Proximity Caves zone layouts 6419 | -6/Lower Caves | Destroyed 7 combat bots 6419 | -6/Lower Caves | Lost 7 parts (4n3w) 6796 | -6/Lower Caves | Discovered new exit (range 7) 6811 | -6/Lower Caves | Entered Data Miner 6811 | -6/Data Miner | Discovered new exit (range 6) 6857 | -6/Data Miner | Met Data Miner 6891 | -6/Data Miner | Learned location of Section 7 (-2) 6891 | -6/Data Miner | Acquired the access code to Warlord's prototype stash 6928 | -6/Data Miner | Received God Mode back door access code from Data Miner 6967 | -6/Data Miner | Entered Proximity Caves 6969 | -5/Proximity Caves | Spotter reported a threat 6970 | -5/Proximity Caves | Spotter reported a threat 7135 | -5/Proximity Caves | Attracted the attention of an 0b10 outpost 7154 | -5/Proximity Caves | Escorted by Enhanced Grunt 7168 | -5/Proximity Caves | Spotter reported a threat 7187 | -5/Proximity Caves | Lost 4 parts (1p1n2w) 7231 | -5/Proximity Caves | Spotter reported a threat 7372 | -5/Proximity Caves | Spotter reported a threat 7484 | -5/Proximity Caves | Self-destructed Last Messages --------------- 07309_ System corrupted: Heat flow error (+195). 07329_ >34QB5Q